[Event "*** Titled Tuesday 3|2 Blitz"]
[Site "Chess.com"]
[Date "2014.12.30"]
[Round "5"]
[White "DrHolmes13"]
[Black "jasrom"]
[Result "1-0"]
[WhiteElo "2211"]
[BlackElo "2210"]
[TimeControl "180+2"]
[EndTime "12:07:13 PST"]
[Termination "DrHolmes13 won by resignation"]

1. Nf3 {[%clk 0:03:00]} 1... d5 {[%clk 0:02:57.1]} 2. d4 {[%clk 0:03:00.4]} 2...
e6 {[%clk 0:02:56.9]} 3. c4 {[%clk 0:03:01.2]} 3... Nf6 {[%clk 0:02:57.3]} 4.
Nc3 {[%clk 0:03:01.9]} 4... c6 {[%clk 0:02:57.6]} 5. Bg5 {[%clk 0:03:02]} 5...
Nbd7 {[%clk 0:02:55.7]} 6. cxd5 {[%clk 0:03:01.9]} 6... exd5 {[%clk 0:02:56.1]}
7. Qc2 {[%clk 0:03:02.8]} 7... Qa5 {[%clk 0:02:57.5]} 8. Bd2 {[%clk 0:02:52.9]}
8... Qc7 {[%clk 0:02:22.4]} 9. g3 {[%clk 0:02:40.5]} 9... Be7 {[%clk 0:02:17.4]}
10. Bg2 {[%clk 0:02:42]} 10... O-O {[%clk 0:02:18]} 11. O-O {[%clk 0:02:43.3]}
11... Re8 {[%clk 0:02:07.2]} 12. Rab1 {[%clk 0:02:43]} 12... a5 {[%clk
0:02:06.1]} 13. a3 {[%clk 0:02:42.7]} 13... Bd6 {[%clk 0:01:53.3]} 14. b4 {[%clk
0:02:38.6]} 14... axb4 {[%clk 0:01:53.3]} 15. axb4 {[%clk 0:02:39.9]} 15... Nb6
{[%clk 0:01:54.7]} 16. Bg5 {[%clk 0:02:30]} 16... Ne4 {[%clk 0:01:17.8]} 17.
Nxe4 {[%clk 0:02:26.7]} 17... Rxe4 {[%clk 0:01:18.4]} 18. b5 {[%clk 0:02:15.9]}
18... Nc4 {[%clk 0:01:12.2]} 19. bxc6 {[%clk 0:02:14.8]} 19... bxc6 {[%clk
0:01:09]} 20. Ra1 {[%clk 0:02:00.4]} 20... Ba6 {[%clk 0:00:55.1]} 21. Rfd1
{[%clk 0:01:48.9]} 21... Ree8 {[%clk 0:00:54]} 22. Ra4 {[%clk 0:01:15.9]} 22...
Na3 {[%clk 0:00:33.3]} 23. Qb3 {[%clk 0:01:02.9]} 23... Bxe2 {[%clk 0:00:23.3]}
24. Rxa8 {[%clk 0:00:57]} 24... Rxa8 {[%clk 0:00:22.2]} 25. Ra1 {[%clk
0:00:50.7]} 25... Bc4 {[%clk 0:00:22]} 26. Qb2 {[%clk 0:00:49.1]} 26... h6
{[%clk 0:00:22.8]} 27. Bd2 {[%clk 0:00:48]} 27... Rb8 {[%clk 0:00:24.2]} 28. Qc3
{[%clk 0:00:46.2]} 28... Rb3 {[%clk 0:00:23.2]} 29. Qc1 {[%clk 0:00:43.7]} 29...
Qb6 {[%clk 0:00:21.9]} 30. Be3 {[%clk 0:00:21.9]} 30... Bb4 {[%clk 0:00:17.8]}
31. Ne5 {[%clk 0:00:20.6]} 31... Bc3 {[%clk 0:00:16.7]} 32. Nxc4 {[%clk
0:00:13.4]} 32... dxc4 {[%clk 0:00:12.8]} 33. Rxa3 {[%clk 0:00:10.9]} 33... Rb1
{[%clk 0:00:13.3]} 34. Rxc3 {[%clk 0:00:12.1]} 34... Rxc1+ {[%clk 0:00:11.5]}
35. Rxc1 {[%clk 0:00:13.5]} 35... Qb5 {[%clk 0:00:10.8]} 36. Be4 {[%clk
0:00:14.3]} 36... g6 {[%clk 0:00:10.6]} 37. Bf3 {[%clk 0:00:15.5]} 37... Qb3
{[%clk 0:00:05.2]} 38. Bxc6 {[%clk 0:00:13.8]} 38... g5 {[%clk 0:00:06.2]} 39.
Bd5 {[%clk 0:00:14.4]} 39... Kg7 {[%clk 0:00:06.1]} 40. Bxc4 {[%clk 0:00:15.7]}
40... Qb2 {[%clk 0:00:07.4]} 41. Bf1 {[%clk 0:00:16.7]} 41... f6 {[%clk
0:00:07]} 42. Bg2 {[%clk 0:00:18.2]} 42... Kg6 {[%clk 0:00:08]} 43. Be4+ {[%clk
0:00:18.9]} 43... f5 {[%clk 0:00:08.7]} 44. Bf3 {[%clk 0:00:20.6]} 44... g4
{[%clk 0:00:09.6]} 45. Bg2 {[%clk 0:00:20.6]} 45... Kf7 {[%clk 0:00:09.8]} 46.
Rd1 {[%clk 0:00:21.4]} 46... Ke6 {[%clk 0:00:09.7]} 47. d5+ {[%clk 0:00:22.4]}
47... Kd7 {[%clk 0:00:10.9]} 48. d6 {[%clk 0:00:23.5]} 48... Qc2 {[%clk
0:00:12]} 49. Re1 {[%clk 0:00:23.9]} 49... h5 {[%clk 0:00:12]} 50. Bd5 {[%clk
0:00:23.5]} 50... Kxd6 {[%clk 0:00:12]} 51. Bf7 {[%clk 0:00:24]} 51... h4 {[%clk
0:00:12.2]} 52. Bf4+ {[%clk 0:00:23.5]} 52... Kd7 {[%clk 0:00:12.2]} 53. Be6+
{[%clk 0:00:24.1]} 53... Kc6 {[%clk 0:00:11.6]} 54. Rc1 {[%clk 0:00:24.8]} 54...
Qxc1+ {[%clk 0:00:10.9]} 55. Bxc1 {[%clk 0:00:25.3]} 1-0

[Event "*** Titled Tuesday 3|2 Blitz"]
[Site "Chess.com"]
[Date "2014.12.30"]
[Round "5"]
[White "Yaacovn"]
[Black "FlySooHigh"]
[Result "1/2-1/2"]
[WhiteElo "2586"]
[BlackElo "2364"]
[TimeControl "180+2"]
[EndTime "12:09:17 PST"]
[Termination "Game drawn by repetition"]

1. d4 {[%clk 0:03:00]} 1... Nf6 {[%clk 0:02:58.4]} 2. Nf3 {[%clk 0:03:01.5]}
2... c5 {[%clk 0:02:59.1]} 3. c3 {[%clk 0:03:02.6]} 3... e6 {[%clk 0:02:59.4]}
4. Bg5 {[%clk 0:03:03.2]} 4... h6 {[%clk 0:03:00.2]} 5. Bh4 {[%clk 0:03:04.2]}
5... b6 {[%clk 0:03:01.3]} 6. e4 {[%clk 0:03:05.1]} 6... g5 {[%clk 0:02:54.5]}
7. Bg3 {[%clk 0:03:06.4]} 7... Nxe4 {[%clk 0:02:53.9]} 8. Be5 {[%clk 0:03:07.8]}
8... Nf6 {[%clk 0:02:47.2]} 9. Nbd2 {[%clk 0:02:59.6]} 9... d6 {[%clk
0:02:38.7]} 10. Bb5+ {[%clk 0:02:48.1]} 10... Bd7 {[%clk 0:02:38.5]} 11. Bxf6
{[%clk 0:02:43.3]} 11... Qxf6 {[%clk 0:02:37.8]} 12. Ne4 {[%clk 0:02:43.7]}
12... Qe7 {[%clk 0:02:33.4]} 13. Qe2 {[%clk 0:02:40.2]} 13... d5 {[%clk
0:02:16.5]} 14. Ne5 {[%clk 0:02:03.5]} 14... Bg7 {[%clk 0:02:00.5]} 15. Bxd7+
{[%clk 0:01:55.6]} 15... Nxd7 {[%clk 0:01:58.4]} 16. Nc6 {[%clk 0:01:56.9]}
16... Qf8 {[%clk 0:01:58]} 17. Ng3 {[%clk 0:01:58]} 17... Qd6 {[%clk 0:01:31.7]}
18. Nf5 {[%clk 0:01:58.6]} 18... Qxc6 {[%clk 0:01:30.4]} 19. Nxg7+ {[%clk
0:01:59.9]} 19... Kf8 {[%clk 0:01:31.5]} 20. Nh5 {[%clk 0:02:01.2]} 20... cxd4
{[%clk 0:01:26]} 21. cxd4 {[%clk 0:02:01.5]} 21... Qc4 {[%clk 0:01:26.7]} 22.
Qd2 {[%clk 0:01:53.1]} 22... Rc8 {[%clk 0:01:19.7]} 23. b3 {[%clk 0:01:51.2]}
23... Qc3 {[%clk 0:01:17.7]} 24. Qxc3 {[%clk 0:01:52.3]} 24... Rxc3 {[%clk
0:01:18]} 25. Kd2 {[%clk 0:01:54.2]} 25... Rc8 {[%clk 0:01:13.4]} 26. h4 {[%clk
0:01:55.5]} 26... Ke7 {[%clk 0:01:12.6]} 27. Rae1 {[%clk 0:01:52.4]} 27... Nf6
{[%clk 0:01:08.3]} 28. Ng3 {[%clk 0:01:51.9]} 28... Kd6 {[%clk 0:01:03.6]} 29.
f3 {[%clk 0:01:48.7]} 29... g4 {[%clk 0:00:56.6]} 30. f4 {[%clk 0:01:50]} 30...
Nd7 {[%clk 0:00:48.4]} 31. f5 {[%clk 0:01:49.9]} 31... e5 {[%clk 0:00:47.7]} 32.
dxe5+ {[%clk 0:01:49.9]} 32... Nxe5 {[%clk 0:00:48.5]} 33. f6 {[%clk 0:01:51.5]}
33... Ke6 {[%clk 0:00:34]} 34. Rhf1 {[%clk 0:01:51.3]} 34... d4 {[%clk
0:00:32.2]} 35. Rf5 {[%clk 0:01:50.5]} 35... Rc5 {[%clk 0:00:32.6]} 36. b4
{[%clk 0:01:44.5]} 36... Rd5 {[%clk 0:00:31.8]} 37. Rf4 {[%clk 0:01:32.5]} 37...
Rc8 {[%clk 0:00:20.1]} 38. Nf5 {[%clk 0:01:08.4]} 38... Rc4 {[%clk 0:00:20.5]}
39. a3 {[%clk 0:01:09.5]} 39... a5 {[%clk 0:00:21]} 40. Ng7+ {[%clk 0:01:09]}
40... Kd6 {[%clk 0:00:20.4]} 41. Rb1 {[%clk 0:00:58.6]} 41... axb4 {[%clk
0:00:20.5]} 42. axb4 {[%clk 0:01:00.5]} 42... Rb5 {[%clk 0:00:20]} 43. Nf5+
{[%clk 0:01:00.1]} 43... Kd5 {[%clk 0:00:19.4]} 44. Ne7+ {[%clk 0:01:00.3]}
44... Ke6 {[%clk 0:00:20]} 45. Nf5 {[%clk 0:00:40]} 45... Rcxb4 {[%clk
0:00:18.9]} 46. Rc1 {[%clk 0:00:20.8]} 46... Kd5 {[%clk 0:00:13]} 47. Ne7+
{[%clk 0:00:20.8]} 47... Ke6 {[%clk 0:00:13.6]} 48. Nf5 {[%clk 0:00:22.2]} 48...
Rb2+ {[%clk 0:00:13.4]} 49. Kd1 {[%clk 0:00:23.3]} 49... Rd5 {[%clk 0:00:10.1]}
50. Rc7 {[%clk 0:00:16.4]} 50... Kxf6 {[%clk 0:00:05.8]} 51. Ne3+ {[%clk
0:00:15.7]} 51... Ke6 {[%clk 0:00:05.7]} 52. Nxd5 {[%clk 0:00:16.9]} 52... Kxd5
{[%clk 0:00:07.6]} 53. Rc2 {[%clk 0:00:08.5]} 53... Rb1+ {[%clk 0:00:06.2]} 54.
Kd2 {[%clk 0:00:09]} 54... Rg1 {[%clk 0:00:06.7]} 55. Rf2 {[%clk 0:00:08.4]}
55... g3 {[%clk 0:00:07.6]} 56. Re2 {[%clk 0:00:07]} 56... d3 {[%clk 0:00:08.4]}
57. Rxe5+ {[%clk 0:00:08.3]} 57... Kxe5 {[%clk 0:00:10.3]} 58. Kxd3 {[%clk
0:00:10.2]} 58... f5 {[%clk 0:00:10.6]} 59. Ke3 {[%clk 0:00:11.3]} 59... f4+
{[%clk 0:00:11.3]} 60. Kf3 {[%clk 0:00:12.8]} 60... Rf1+ {[%clk 0:00:12.9]} 61.
Kg4 {[%clk 0:00:14]} 61... Rf2 {[%clk 0:00:14.4]} 62. Rc8 {[%clk 0:00:13.8]}
62... Rxg2 {[%clk 0:00:15.5]} 63. Re8+ {[%clk 0:00:14.9]} 63... Kd4 {[%clk
0:00:16.1]} 64. Kxf4 {[%clk 0:00:16.3]} 64... Rg1 {[%clk 0:00:16.3]} 65. Kf3
{[%clk 0:00:17.2]} 65... b5 {[%clk 0:00:17]} 66. Rb8 {[%clk 0:00:16.7]} 66...
Kc4 {[%clk 0:00:17.6]} 67. Rc8+ {[%clk 0:00:17.9]} 67... Kb3 {[%clk 0:00:18.7]}
68. Rh8 {[%clk 0:00:18.9]} 68... b4 {[%clk 0:00:18.1]} 69. Rxh6 {[%clk
0:00:20.3]} 69... Kb2 {[%clk 0:00:19.2]} 70. Rb6 {[%clk 0:00:18.6]} 70... b3
{[%clk 0:00:20.2]} 71. h5 {[%clk 0:00:20.5]} 71... Kc2 {[%clk 0:00:20.3]} 72.
Rc6+ {[%clk 0:00:21.3]} 72... Kb1 {[%clk 0:00:20.8]} 73. h6 {[%clk 0:00:22.1]}
73... b2 {[%clk 0:00:19.9]} 74. h7 {[%clk 0:00:23.4]} 74... Rh1 {[%clk
0:00:20.5]} 75. Rc7 {[%clk 0:00:23.4]} 75... Ka2 {[%clk 0:00:17.9]} 76. Ra7+
{[%clk 0:00:24.3]} 76... Kb3 {[%clk 0:00:18.9]} 77. Rb7+ {[%clk 0:00:25.6]}
77... Kc3 {[%clk 0:00:18.5]} 78. Rc7+ {[%clk 0:00:26.8]} 78... Kd3 {[%clk
0:00:18.8]} 79. Rd7+ {[%clk 0:00:26.9]} 79... Kc4 {[%clk 0:00:18.2]} 80. Rc7+
{[%clk 0:00:27.6]} 80... Kd4 {[%clk 0:00:18.5]} 81. Rd7+ {[%clk 0:00:28.3]}
81... Kc3 {[%clk 0:00:17.5]} 82. Rc7+ {[%clk 0:00:29.6]} 82... Kd3 {[%clk
0:00:17.4]} 83. Rd7+ {[%clk 0:00:30.7]} 83... Kc4 {[%clk 0:00:18]} 84. Rc7+
{[%clk 0:00:31.9]} 84... Kd3 {[%clk 0:00:13.8]} 85. Rd7+ {[%clk 0:00:32.6]}
85... Kc2 {[%clk 0:00:14.8]} 86. Rc7+ {[%clk 0:00:32.5]} 86... Kd2 {[%clk
0:00:14.3]} 87. Rd7+ {[%clk 0:00:33.6]} 87... Kc3 {[%clk 0:00:08.3]} 88. Rc7+
{[%clk 0:00:34.7]} 88... Kd3 {[%clk 0:00:08.1]} 89. Rd7+ {[%clk 0:00:35.6]}
1/2-1/2

[Event "*** Titled Tuesday 3|2 Blitz"]
[Site "Chess.com"]
[Date "2014.12.30"]
[Round "6"]
[White "MisaPap"]
[Black "megarompa"]
[Result "1/2-1/2"]
[WhiteElo "2385"]
[BlackElo "2505"]
[TimeControl "180+2"]
[EndTime "12:15:48 PST"]
[Termination "Game drawn by repetition"]

1. e4 {[%clk 0:02:55.6]} 1... e5 {[%clk 0:02:58.3]} 2. Nf3 {[%clk 0:02:56]} 2...
Nc6 {[%clk 0:02:59.7]} 3. Bc4 {[%clk 0:02:56.5]} 3... Nf6 {[%clk 0:03:00.3]} 4.
d4 {[%clk 0:02:57]} 4... exd4 {[%clk 0:02:59]} 5. e5 {[%clk 0:02:58]} 5... d5
{[%clk 0:03:00.5]} 6. Bb5 {[%clk 0:02:58.3]} 6... Ne4 {[%clk 0:03:00]} 7. Nxd4
{[%clk 0:02:59.2]} 7... Bd7 {[%clk 0:03:01.1]} 8. Bxc6 {[%clk 0:03:00.1]} 8...
bxc6 {[%clk 0:03:01.4]} 9. O-O {[%clk 0:03:01]} 9... Bc5 {[%clk 0:03:00.3]} 10.
f3 {[%clk 0:03:02.1]} 10... Ng5 {[%clk 0:02:53.8]} 11. Be3 {[%clk 0:03:01.8]}
11... O-O {[%clk 0:02:54.7]} 12. f4 {[%clk 0:03:02.6]} 12... Ne4 {[%clk
0:02:50.5]} 13. Nd2 {[%clk 0:03:03]} 13... Nxd2 {[%clk 0:02:50.6]} 14. Qxd2
{[%clk 0:03:03.7]} 14... Bb6 {[%clk 0:02:51.6]} 15. Nb3 {[%clk 0:03:03.8]} 15...
a5 {[%clk 0:02:47.6]} 16. a4 {[%clk 0:02:55.5]} 16... Re8 {[%clk 0:02:42.9]} 17.
Kh1 {[%clk 0:02:51.9]} 17... Bf5 {[%clk 0:02:37.2]} 18. Bc5 {[%clk 0:02:45.1]}
18... Be4 {[%clk 0:02:29.7]} 19. Rae1 {[%clk 0:02:40.1]} 19... Qc8 {[%clk
0:02:23.9]} 20. h3 {[%clk 0:02:36.3]} 20... Qxh3+ {[%clk 0:02:20.8]} 21. Kg1
{[%clk 0:02:36.5]} 21... Qh6 {[%clk 0:02:18.2]} 22. Qc3 {[%clk 0:02:25]} 22...
f5 {[%clk 0:02:07.4]} 23. Re3 {[%clk 0:02:23.8]} 23... Re6 {[%clk 0:02:00.5]}
24. Rh3 {[%clk 0:02:20.1]} 24... Qg6 {[%clk 0:01:58.7]} 25. Rg3 {[%clk
0:02:20.1]} 25... Qe8 {[%clk 0:01:58.9]} 26. Nd4 {[%clk 0:02:19.4]} 26... Rg6
{[%clk 0:01:59.3]} 27. Rxg6 {[%clk 0:02:02.7]} 27... Qxg6 {[%clk 0:02:00.7]} 28.
Rf2 {[%clk 0:02:03.5]} 28... Rc8 {[%clk 0:01:52.5]} 29. b4 {[%clk 0:02:00.7]}
29... axb4 {[%clk 0:01:45.3]} 30. Qxb4 {[%clk 0:01:59.4]} 30... h6 {[%clk
0:01:45.9]} 31. a5 {[%clk 0:01:59.2]} 31... Bxc5 {[%clk 0:01:47.5]} 32. Qxc5
{[%clk 0:02:00]} 32... Rb8 {[%clk 0:01:49.2]} 33. Nb3 {[%clk 0:01:37.1]} 33...
Qg4 {[%clk 0:01:48.1]} 34. Qxc6 {[%clk 0:01:26.4]} 34... Qd1+ {[%clk 0:01:46]}
35. Kh2 {[%clk 0:01:24.6]} 35... Qh5+ {[%clk 0:01:43]} 36. Kg1 {[%clk
0:01:25.1]} 36... Qd1+ {[%clk 0:01:43.7]} 37. Kh2 {[%clk 0:01:25.8]} 37... Qh5+
{[%clk 0:01:40.2]} 38. Kg1 {[%clk 0:01:26.5]} 38... Qd1+ {[%clk 0:01:41.7]} 39.
Kh2 {[%clk 0:01:27.1]} 1/2-1/2

[Event "*** Titled Tuesday 3|2 Blitz"]
[Site "Chess.com"]
[Date "2014.12.30"]
[Round "6"]
[White "bsmail"]
[Black "gumersindo"]
[Result "0-1"]
[WhiteElo "2125"]
[BlackElo "2116"]
[TimeControl "180+2"]
[EndTime "12:16:18 PST"]
[Termination "gumersindo won by checkmate"]

1. d4 {[%clk 0:03:00]} 1... d5 {[%clk 0:02:56.5]} 2. c4 {[%clk 0:03:00.4]} 2...
c6 {[%clk 0:02:57.1]} 3. Nf3 {[%clk 0:03:00.1]} 3... Nf6 {[%clk 0:02:57.8]} 4.
Nc3 {[%clk 0:03:01.2]} 4... a6 {[%clk 0:02:55.7]} 5. cxd5 {[%clk 0:03:01.4]}
5... cxd5 {[%clk 0:02:56.3]} 6. Bf4 {[%clk 0:03:02.2]} 6... Nc6 {[%clk
0:02:56.9]} 7. e3 {[%clk 0:03:03.6]} 7... Bg4 {[%clk 0:02:57.5]} 8. h3 {[%clk
0:03:04.3]} 8... Bd7 {[%clk 0:02:57]} 9. Qb3 {[%clk 0:03:00.5]} 9... Bc8 {[%clk
0:02:56.8]} 10. Bd3 {[%clk 0:02:56]} 10... e6 {[%clk 0:02:57.3]} 11. a3 {[%clk
0:02:56.8]} 11... Bd6 {[%clk 0:02:58]} 12. Bxd6 {[%clk 0:02:53.1]} 12... Qxd6
{[%clk 0:02:59.3]} 13. O-O {[%clk 0:02:52.8]} 13... O-O {[%clk 0:02:59.4]} 14.
Qc2 {[%clk 0:02:53.1]} 14... Bd7 {[%clk 0:02:57.9]} 15. b4 {[%clk 0:02:51.7]}
15... Rac8 {[%clk 0:02:58.3]} 16. Nd2 {[%clk 0:02:49.2]} 16... Na7 {[%clk
0:02:54.5]} 17. Qb3 {[%clk 0:02:49.6]} 17... Rc7 {[%clk 0:02:53.4]} 18. Qb2
{[%clk 0:02:49.5]} 18... Rfc8 {[%clk 0:02:52.8]} 19. Rfc1 {[%clk 0:02:50.5]}
19... e5 {[%clk 0:02:46.5]} 20. Nb3 {[%clk 0:02:51.3]} 20... e4 {[%clk
0:02:44.6]} 21. Be2 {[%clk 0:02:51.1]} 21... Nb5 {[%clk 0:02:38.1]} 22. Nc5
{[%clk 0:02:45.1]} 22... Nxc3 {[%clk 0:02:35.3]} 23. Rxc3 {[%clk 0:02:25.6]}
23... b6 {[%clk 0:02:35.5]} 24. Bxa6 {[%clk 0:02:12.2]} 24... bxc5 {[%clk
0:02:36]} 25. Bxc8 {[%clk 0:02:13.4]} 25... Rxc8 {[%clk 0:02:31.7]} 26. Rxc5
{[%clk 0:02:13.7]} 26... Rf8 {[%clk 0:02:28.3]} 27. a4 {[%clk 0:02:11.8]} 27...
g5 {[%clk 0:02:17.3]} 28. a5 {[%clk 0:01:44.6]} 28... g4 {[%clk 0:02:18.1]} 29.
a6 {[%clk 0:01:43.7]} 29... gxh3 {[%clk 0:02:19.2]} 30. g3 {[%clk 0:01:44.1]}
30... h2+ {[%clk 0:02:19]} 31. Kxh2 {[%clk 0:01:40.5]} 31... Ng4+ {[%clk
0:02:19.8]} 32. Kg2 {[%clk 0:01:40.6]} 32... Qf6 {[%clk 0:02:18.3]} 33. Qe2
{[%clk 0:01:37.4]} 33... Qh6 {[%clk 0:02:09.3]} 34. Rh1 {[%clk 0:01:29.4]} 34...
Qf6 {[%clk 0:02:06.2]} 35. Rxd5 {[%clk 0:01:22]} 35... Be6 {[%clk 0:02:06.8]}
36. Rd6 {[%clk 0:01:19.6]} 36... Qf5 {[%clk 0:02:06.9]} 37. b5 {[%clk
0:01:05.9]} 37... Bc4 {[%clk 0:02:02.5]} 38. Qxc4 {[%clk 0:00:22]} 38... Qf3+
{[%clk 0:01:59.5]} 39. Kh3 {[%clk 0:00:23.3]} 39... Nxf2+ {[%clk 0:02:00.1]} 40.
Kh4 {[%clk 0:00:19.6]} 40... Qg4# {[%clk 0:02:01.1]} 0-1

[Event "*** Titled Tuesday 3|2 Blitz"]
[Site "Chess.com"]
[Date "2014.12.30"]
[Round "6"]
[White "Carolina-moon"]
[Black "AlmirDzhumaev"]
[Result "0-1"]
[WhiteElo "1886"]
[BlackElo "2071"]
[TimeControl "180+2"]
[EndTime "12:16:39 PST"]
[Termination "AlmirDzhumaev won by resignation"]

1. e4 {[%clk 0:03:00]} 1... e5 {[%clk 0:02:59.2]} 2. Nf3 {[%clk 0:03:01.2]} 2...
Nc6 {[%clk 0:03:00.4]} 3. Bb5 {[%clk 0:03:02.7]} 3... a6 {[%clk 0:03:01.2]} 4.
Bxc6 {[%clk 0:03:04.3]} 4... dxc6 {[%clk 0:03:02.1]} 5. O-O {[%clk 0:03:05.5]}
5... Bg4 {[%clk 0:03:02.9]} 6. h3 {[%clk 0:03:06.4]} 6... h5 {[%clk 0:03:03.9]}
7. d3 {[%clk 0:03:05.7]} 7... Qf6 {[%clk 0:03:04.3]} 8. Nbd2 {[%clk 0:03:07]}
8... Bd6 {[%clk 0:03:05.7]} 9. Re1 {[%clk 0:03:07.4]} 9... Be6 {[%clk
0:03:06.8]} 10. Nc4 {[%clk 0:02:55.2]} 10... Ne7 {[%clk 0:03:06]} 11. Bg5 {[%clk
0:02:12]} 11... Qg6 {[%clk 0:03:04.3]} 12. Bxe7 {[%clk 0:02:10.7]} 12... Bxe7
{[%clk 0:03:02.4]} 13. Ncxe5 {[%clk 0:02:06.1]} 13... Qh7 {[%clk 0:03:02.4]} 14.
Qe2 {[%clk 0:01:55.3]} 14... f6 {[%clk 0:03:02.3]} 15. Nc4 {[%clk 0:01:53.7]}
15... g5 {[%clk 0:03:01.2]} 16. Nd4 {[%clk 0:01:51.8]} 16... Bd7 {[%clk
0:02:53.2]} 17. Nf5 {[%clk 0:01:51.3]} 17... O-O-O {[%clk 0:02:45.8]} 18. Nxe7+
{[%clk 0:01:46.3]} 18... Qxe7 {[%clk 0:02:46.6]} 19. Qe3 {[%clk 0:01:26.2]}
19... Kb8 {[%clk 0:02:43.7]} 20. a4 {[%clk 0:01:17.8]} 20... Rdg8 {[%clk
0:02:42.4]} 21. Ra3 {[%clk 0:01:07.3]} 21... h4 {[%clk 0:02:42.8]} 22. Rb3
{[%clk 0:01:08]} 22... g4 {[%clk 0:02:43.7]} 23. Na5 {[%clk 0:00:58.8]} 23... b5
{[%clk 0:01:48.9]} 24. axb5 {[%clk 0:00:55.4]} 24... cxb5 {[%clk 0:01:49.8]} 25.
hxg4 {[%clk 0:00:10.7]} 25... Rxg4 {[%clk 0:01:46.7]} 26. Qf3 {[%clk 0:00:10.4]}
26... Rhg8 {[%clk 0:01:46.4]} 27. Kf1 {[%clk 0:00:10.5]} 27... Rxg2 {[%clk
0:01:47]} 28. e5 {[%clk 0:00:10.6]} 28... Rg1+ {[%clk 0:01:45.3]} 29. Ke2 {[%clk
0:00:11.8]} 29... Qxe5+ {[%clk 0:01:44.1]} 30. Qe3 {[%clk 0:00:10.3]} 30...
Rxe1+ {[%clk 0:01:42.2]} 31. Kxe1 {[%clk 0:00:11]} 31... Rg1+ {[%clk 0:01:43.1]}
32. Kd2 {[%clk 0:00:11.7]} 32... Qxe3+ {[%clk 0:01:43.9]} 33. Kxe3 {[%clk
0:00:11.1]} 33... h3 {[%clk 0:01:45.2]} 34. Rb4 {[%clk 0:00:09.7]} 34... Bg4
{[%clk 0:01:41.5]} 35. Nc6+ {[%clk 0:00:08.6]} 35... Kb7 {[%clk 0:01:41.9]} 36.
Nd8+ {[%clk 0:00:09.3]} 36... Kc8 {[%clk 0:01:42.6]} 37. Rxg4 {[%clk 0:00:07.9]}
37... Rxg4 {[%clk 0:01:43.1]} 0-1

[Event "*** Titled Tuesday 3|2 Blitz"]
[Site "Chess.com"]
[Date "2014.12.30"]
[Round "6"]
[White "playerzr"]
[Black "hitaman"]
[Result "0-1"]
[WhiteElo "1868"]
[BlackElo "2386"]
[TimeControl "180+2"]
[EndTime "12:16:48 PST"]
[Termination "hitaman won by resignation"]

1. d4 {[%clk 0:02:39.3]} 1... d5 {[%clk 0:02:57.8]} 2. c4 {[%clk 0:02:40.2]}
2... c6 {[%clk 0:02:58.9]} 3. Nf3 {[%clk 0:02:37.6]} 3... Nf6 {[%clk 0:02:59.6]}
4. e3 {[%clk 0:02:36.1]} 4... Bf5 {[%clk 0:03:00]} 5. Nc3 {[%clk 0:02:34.7]}
5... e6 {[%clk 0:03:01.1]} 6. Be2 {[%clk 0:02:33.5]} 6... h6 {[%clk 0:02:58.4]}
7. O-O {[%clk 0:02:34.1]} 7... Nbd7 {[%clk 0:02:58.5]} 8. Qb3 {[%clk 0:02:33.9]}
8... Qb6 {[%clk 0:02:58.7]} 9. c5 {[%clk 0:02:32.8]} 9... Qxb3 {[%clk
0:02:58.6]} 10. axb3 {[%clk 0:02:33.5]} 10... a6 {[%clk 0:02:59.7]} 11. b4
{[%clk 0:02:33.9]} 11... Rc8 {[%clk 0:02:58.6]} 12. Bd2 {[%clk 0:02:32.3]} 12...
Ne4 {[%clk 0:02:57.8]} 13. Nxe4 {[%clk 0:02:26.8]} 13... Bxe4 {[%clk 0:02:46.3]}
14. Bc3 {[%clk 0:02:23.6]} 14... g5 {[%clk 0:02:46.6]} 15. Nd2 {[%clk
0:02:22.9]} 15... Bg6 {[%clk 0:02:40.7]} 16. f3 {[%clk 0:02:02.6]} 16... Bg7
{[%clk 0:02:39.6]} 17. Rae1 {[%clk 0:02:00.8]} 17... O-O {[%clk 0:02:36.3]} 18.
Nb3 {[%clk 0:01:48.3]} 18... e5 {[%clk 0:02:32]} 19. e4 {[%clk 0:01:15.9]} 19...
dxe4 {[%clk 0:02:19]} 20. dxe5 {[%clk 0:01:04.7]} 20... Nxe5 {[%clk 0:02:18.1]}
21. f4 {[%clk 0:00:58.9]} 21... gxf4 {[%clk 0:02:15.9]} 22. Rxf4 {[%clk
0:00:57.9]} 22... Rcd8 {[%clk 0:02:13.7]} 23. Na5 {[%clk 0:00:45.1]} 23... Rd7
{[%clk 0:02:11]} 24. h4 {[%clk 0:00:30.3]} 24... Nd3 {[%clk 0:02:09.9]} 25. Bxd3
{[%clk 0:00:28.9]} 25... exd3 {[%clk 0:02:08.6]} 26. Nc4 {[%clk 0:00:15.4]}
26... Rfd8 {[%clk 0:01:39.6]} 27. Nd6 {[%clk 0:00:13.7]} 27... Rxd6 {[%clk
0:01:34.8]} 28. cxd6 {[%clk 0:00:12.8]} 28... Rxd6 {[%clk 0:01:36.7]} 29. g4
{[%clk 0:00:05.6]} 29... Bxc3 {[%clk 0:01:35.3]} 30. bxc3 {[%clk 0:00:05.9]}
30... d2 {[%clk 0:01:36.9]} 31. Rd1 {[%clk 0:00:05.4]} 31... Bc2 {[%clk
0:01:37.9]} 32. Rff1 {[%clk 0:00:06.2]} 32... Bxd1 {[%clk 0:01:37.4]} 33. Rxd1
{[%clk 0:00:07.2]} 33... Kg7 {[%clk 0:01:36.4]} 34. Kf2 {[%clk 0:00:08]} 34...
h5 {[%clk 0:01:37]} 35. gxh5 {[%clk 0:00:07.3]} 35... Kh6 {[%clk 0:01:38]} 36.
Ke2 {[%clk 0:00:06.7]} 36... Kxh5 {[%clk 0:01:38.9]} 37. Rf1 {[%clk 0:00:07.3]}
37... d1=Q+ {[%clk 0:01:39.5]} 38. Rxd1 {[%clk 0:00:07.6]} 38... Rxd1 {[%clk
0:01:41.4]} 39. Kxd1 {[%clk 0:00:08.2]} 39... Kxh4 {[%clk 0:01:41.8]} 0-1